fUSD/lending_fUSD_20260404
["ID","MTS","AMOUNT","RATE_DAILY","PERIOD"]
[419689835,1775291441523,-1022.38950124,0.00011799,2]
[419689836,1775291441532,-1022.38950124,0.00011799,2]
[419689837,1775291441541,-1022.38950124,0.00011799,2]
[419689838,1775291441550,-1022.38950124,0.00011799,2]
[419689839,1775291441560,-1022.38950124,0.00011799,2]
[419689840,1775291441569,-1022.38950124,0.00011799,2]
[419689841,1775291441579,-1022.38950124,0.00011799,2]
[419689842,1775291441589,-1022.38950124,0.00011799,2]
[419689843,1775291441599,-1022.38950124,0.00011799,2]
[419689844,1775291441608,-1022.38950124,0.00011799,2]
[419689845,1775291441618,-1022.38950124,0.00011799,2]
[419689846,1775291441627,-1022.38950124,0.00011799,2]
[419689847,1775291441637,-1022.38950124,0.00011799,2]
[419689848,1775291441646,-1022.38950124,0.00011799,2]
[419689849,1775291441656,-1022.38950124,0.00011799,2]
[419689850,1775291441666,-1022.38950124,0.00011799,2]
[419689851,1775291441676,-1022.38950124,0.00011799,2]
[419689852,1775291441687,-1022.38950124,0.00011799,2]
[419689853,1775291441697,-1022.38950124,0.00011799,2]
[419689854,1775291441707,-1022.38950124,0.00011799,2]
[419689855,1775291441717,-1022.38950124,0.00011799,2]
[419689856,1775291441726,-1022.38950124,0.00011799,2]
[419689857,1775291441737,-1022.38950124,0.00011799,2]
[419689858,1775291441747,-1022.38950124,0.00011799,2]
[419689859,1775291441757,-1022.38950124,0.00011799,2]
[419689860,1775291441767,-1022.38950124,0.00011799,2]
[419689861,1775291441776,-1022.38950124,0.00011799,2]
[419689862,1775291441786,-1022.38950124,0.00011799,2]
[419689863,1775291441795,-1022.38950124,0.00011799,2]
[419689864,1775291441805,-1022.38950124,0.00011799,2]
[419689865,1775291441814,-1022.38950124,0.00011799,2]
[419689866,1775291441824,-1022.38950124,0.00011799,2]
[419689867,1775291441833,-1022.38950124,0.00011799,2]
[419689868,1775291441843,-1022.38950124,0.00011799,2]
[419689869,1775291441852,-1022.38950124,0.00011799,2]
[419689870,1775291441862,-1022.38950124,0.00011799,2]
[419689871,1775291441871,-1871.06752635,0.00011801,2]
[419689872,1775291441880,-150.99,0.00011802,2]
[419689873,1775291441890,-206.49,0.00011802,2]
[419689874,1775291441900,-1569.88,0.00011802,2]
[419689875,1775291441909,-9999.99,0.00011802,2]
[419689876,1775291441919,-1570.92,0.00011803,2]
[419689877,1775291441928,-150.99,0.00011803,2]
[419689878,1775291441937,-299.99,0.00011803,2]
[419689879,1775291441946,-9999.99,0.00011803,2]
[419689880,1775291441956,-999.99,0.00011803,2]
[419689881,1775291441965,-500.0,0.00011803,2]
[419689882,1775291441974,-239111.8238,0.00011804,2]
[419689883,1775291441983,-500.0,0.00011873,2]
[419689884,1775291442121,-169.5958419,0.00011873,2]
[419689885,1775291442184,-500.0,0.00011873,2]
[419689886,1775291442194,-500.67460995,0.00011873,2]
[419689887,1775291442203,-500.0,0.00011873,2]
[419689888,1775291442212,-500.0,0.00011873,2]
[419689889,1775291442222,-503.04020671,0.00011873,2]
[419689890,1775291442231,-500.0,0.00011873,2]
[419689891,1775291442240,-206.49,0.00012076,2]
[419689892,1775291442250,-5000.0,0.00012166,2]
[419689893,1775291442260,-153.86456603,0.00012166,2]
[419689894,1775291442269,-188.92935304,0.00012166,2]
[419689895,1775291442279,-18590.8540198,0.00012167,2]
[419689896,1775291442289,-2326.69081163,0.00012168,2]
[419689897,1775291442304,-4898.91005182,0.00012168,2]
[419689898,1775291442313,-206.49,0.0001235,2]
[419689899,1775291442323,-500.0,0.00012421,2]
[419689900,1775291442332,-169.20499491,0.00012421,2]
[419689901,1775291442341,-1000.0,0.00012496,2]
[419689902,1775291442350,-2000.0,0.00012507,2]
[419689903,1775291442359,-600.0,0.00012563,2]
[419689904,1775291442369,-250.0,0.00012563,2]
[419689905,1775291442378,-150.0,0.000126,2]
[419689906,1775291442387,-1680.0,0.00012619,2]
[419689907,1775291442397,-206.49,0.00012624,2]
[419689908,1775291442406,-18590.8540198,0.00012633,2]
[419689909,1775291442415,-7225.60086345,0.00012634,2]
[419689910,1775291442425,-280.0,0.00012657,2]
[419689911,1775291442434,-500.0,0.00012673,2]
[419689912,1775291442444,-500.0,0.00012673,2]
[419689913,1775291442453,-500.0,0.00012673,2]
[419689914,1775291442462,-500.0,0.00012673,2]
[419689915,1775291442471,-500.0,0.00012673,2]
[419689916,1775291442481,-500.0,0.00012673,2]
[419689917,1775291442490,-500.0,0.00012673,2]
[419689918,1775291442499,-500.0,0.00012673,2]
[419689919,1775291442509,-500.0,0.00012673,2]
[419689920,1775291442519,-500.0,0.00012673,2]
[419689921,1775291442528,-500.0,0.00012673,2]
[419689922,1775291442538,-151.0,0.00012673,2]
[419689923,1775291442548,-151.0,0.00012673,2]
[419689924,1775291442557,-151.0,0.00012673,2]
[419689925,1775291442567,-151.0,0.00012673,2]
[419689926,1775291442576,-151.0,0.00012673,2]
[419689927,1775291442585,-151.0,0.00012673,2]
[419689928,1775291442595,-151.0,0.00012673,2]
[419689929,1775291442604,-151.0,0.00012673,2]
[419689930,1775291442614,-151.0,0.00012673,2]
[419689931,1775291442623,-151.0,0.00012673,2]
[419689932,1775291442632,-151.0,0.00012673,2]
[419689933,1775291442642,-611.6739728,0.00012741,2]
[419689934,1775291442652,-255.0,0.00012765,2]
[419689935,1775291442662,-1109.0,0.00012778,2]
[419689936,1775291442671,-953.0,0.00012787,2]
[419689937,1775291442681,-180.0,0.00012812,2]
[419689938,1775291442690,-1600.0,0.00012849,2]
[419689939,1775291442699,-213.0,0.00012876,2]
[419689940,1775291442709,-206.5,0.00012898,2]
[419689941,1775291442718,-33024.725,0.00012899,2]
[419689942,1775291442728,-1300.0,0.000129,4]
[419689943,1775291442737,-7427.50608623,0.00012901,2]
[419689944,1775291442746,-333.0,0.00012901,2]
[419689945,1775291442755,-599.0,0.00012927,2]
[419689946,1775291442764,-952.0,0.00013012,2]
[419689947,1775291442773,-1865.0,0.00013038,2]
[419689948,1775291442783,-265.0,0.00013064,2]
[419689949,1775291442793,-1652.0,0.0001309,2]
[419689950,1775291442804,-7258.42253977,0.000131,2]
[419689951,1775291442825,-3549.4941997,0.000131,2]
[419689952,1775291442922,-7464.80342362,0.000131,2]
[419689953,1775291442933,-318.13385671,0.000131,2]
[419689954,1775291442945,-7225.60086345,0.00013101,2]
[419689955,1775291442956,-517.0,0.00013111,2]
[419689956,1775291442966,-44.75122983,0.00013116,2]
[419689957,1775291442983,-1455.24877017,0.00013116,2]
[419689958,1775291442993,-228.0,0.00013196,2]
[419689959,1775291443003,-1000.0,0.0001343,2]
[419689960,1775291443012,-300.0,0.0001343,7]
[419689961,1775291443022,-636.09687522,0.0001344,2]
[419689962,1775291443065,-863.90312478,0.0001344,2]
[419689964,1775291443074,-877.22526235,0.00013501,2]
[419689965,1775291443085,-635.19657638,0.00013501,2]
[419689966,1775291443096,-5915.0842475,0.00013501,2]
[419689967,1775291443106,-18590.8540198,0.00013567,2]
[419689968,1775291443115,-7225.60086345,0.00013567,2]
[419689969,1775291443125,-150.0,0.00013699,2]
[419689970,1775291443135,-150.0,0.00013699,2]
[419689971,1775291443144,-1848.8,0.00013699,2]
[419689972,1775291443154,-415.31553778,0.0001381,2]
[419689973,1775291443163,-500.0,0.00013853,2]
[419689974,1775291443173,-500.0,0.00013853,2]
[419689975,1775291443182,-500.0,0.00013853,2]
[419689976,1775291443191,-500.0,0.00013853,2]
[419689977,1775291443201,-500.0,0.00013853,2]
[419689978,1775291443211,-500.0,0.00013853,2]
[419689980,1775291443221,-250.0,0.00013853,2]
[419689981,1775291443230,-500.0,0.00013853,2]
[419689982,1775291443240,-250.0,0.00013853,2]
[419689983,1775291443249,-500.0,0.00013853,2]
[419689984,1775291443259,-250.0,0.00013853,2]
[419689985,1775291443269,-500.0,0.00013853,2]
[419689986,1775291443279,-250.0,0.00013853,2]
[419689987,1775291443288,-500.0,0.00013853,2]
[419689988,1775291443298,-250.0,0.00013853,2]
[419689989,1775291443307,-500.0,0.00013853,2]
[419689990,1775291443317,-250.0,0.00013853,2]
[419689991,1775291443327,-500.0,0.00013853,2]
[419689992,1775291443337,-250.0,0.00013853,2]
[419689993,1775291443347,-250.0,0.00013853,2]
[419689994,1775291443357,-250.0,0.00013853,2]
[419689995,1775291443366,-250.0,0.00013853,2]
[419689996,1775291443375,-500.0,0.00013853,2]
[419689997,1775291443385,-250.0,0.00013853,2]
[419689998,1775291443394,-500.0,0.00013853,2]
[419689999,1775291443404,-500.0,0.00013853,2]
[419690000,1775291443413,-500.0,0.00013853,2]
[419690001,1775291443423,-500.0,0.00013853,2]
[419690002,1775291443435,-500.0,0.00013853,2]
[419690003,1775291443444,-500.0,0.00013853,2]
[419690004,1775291443454,-500.0,0.00013853,2]
[419690005,1775291443463,-500.0,0.00013853,2]
[419690006,1775291443473,-151.0,0.00013853,2]
[419690007,1775291443483,-500.0,0.00013853,2]
[419690008,1775291443492,-500.0,0.00013853,2]
[419690009,1775291443502,-174.61919141,0.00013853,2]
[419690010,1775291443512,-170.0,0.00013853,2]
[419690011,1775291443521,-170.0,0.00013853,2]
[419690012,1775291443531,-170.0,0.00013853,2]
[419690013,1775291443541,-304.16643308,0.00013853,2]
[419690014,1775291443551,-2000.0,0.00013897,2]
[419690015,1775291443560,-501.88837508,0.000139,2]
[419690016,1775291443570,-500.0,0.000139,2]
[419690017,1775291443579,-500.0,0.000139,2]
[419690018,1775291443589,-500.0,0.000139,2]
[419690019,1775291443598,-500.0,0.000139,2]
[419690020,1775291443608,-500.45908735,0.000139,2]
[419690021,1775291443618,-500.0,0.000139,2]
[419690022,1775291443628,-502.40500922,0.000139,2]
[419690023,1775291443637,-500.0,0.000139,2]
[419690024,1775291443647,-500.0,0.000139,2]
[419690025,1775291443658,-503.75625281,0.000139,2]
[419690026,1775291443668,-500.0,0.000139,2]
[419690027,1775291443678,-500.0,0.000139,2]
[419690028,1775291443688,-500.0,0.00013908,2]
[419690029,1775291443698,-151.0,0.00013908,2]
[419690030,1775291443708,-150.0,0.00013923,2]
[419690031,1775291443718,-500.0,0.00013963,2]
[419690032,1775291443728,-151.0,0.00013963,2]
[419690033,1775291443738,-473.51720145,0.00014006,2]
[419690034,1775291443748,-500.0,0.00014018,2]
[419690035,1775291443758,-151.0,0.00014018,2]
[419690036,1775291443768,-18590.8540198,0.00014033,2]
[419690037,1775291443778,-7225.60086345,0.00014034,2]
[419690038,1775291443787,-500.0,0.00014073,2]
[419690039,1775291443796,-151.0,0.00014073,2]
[419690040,1775291443806,-7427.50608623,0.000141,2]
[419690041,1775291443815,-500.0,0.00014128,2]
[419690042,1775291443824,-151.0,0.00014128,2]
[419690043,1775291443834,-194.761681,0.00014159,2]
[419690044,1775291443843,-500.0,0.00014183,2]
[419690045,1775291443853,-151.0,0.00014183,2]
[419690046,1775291443863,-155.14456622,0.00014219,2]
[419690047,1775291443873,-500.0,0.00014238,2]
[419690048,1775291443882,-151.0,0.00014238,2]
[419690049,1775291443891,-1600.0,0.00014277,2]
[419690050,1775291443901,-500.0,0.00014293,2]
[419690051,1775291443911,-151.0,0.00014293,2]
[419690052,1775291443920,-500.0,0.00014348,2]
[419690053,1775291443930,-151.0,0.00014348,2]
[419690054,1775291443939,-1848.8,0.00014384,2]
[419690055,1775291443949,-150.0,0.000144,2]
[419690056,1775291443959,-150.0,0.000144,2]
[419690057,1775291443969,-150.0,0.000144,2]
[419690058,1775291443979,-150.33770113,0.000144,2]
[419690059,1775291443988,-150.0,0.000144,2]
[419690060,1775291443998,-150.0,0.000144,2]
[419690061,1775291444007,-150.0,0.000144,2]
[419690062,1775291444017,-150.0,0.000144,2]
[419690063,1775291444027,-150.0,0.000144,2]
[419690064,1775291444037,-150.0,0.000144,2]
[419690066,1775291444047,-150.0,0.000144,2]
[419690068,1775291444056,-181.08010149,0.00014401,2]
[419690069,1775291444066,-500.0,0.00014403,2]
[419690070,1775291444076,-188.11543045,0.00014403,2]
[419690071,1775291444085,-508.71327298,0.00014433,2]
[419690072,1775291444095,-163.63945989,0.00014439,2]
[419690073,1775291444105,-1002.85794686,0.00014448,2]
[419690074,1775291444115,-1000.0,0.00014448,2]
[419690075,1775291444124,-500.0,0.00014448,2]
[419690076,1775291444134,-504.78279466,0.00014448,2]
[419690077,1775291444143,-1001.06405699,0.00014448,2]
[419690078,1775291444153,-1001.37054133,0.00014448,2]
[419690079,1775291444162,-1000.0,0.00014448,2]
[419690080,1775291444172,-894.29704901,0.00014448,2]
[419690081,1775291444181,-7225.60086345,0.000145,2]
[419690082,1775291444191,-150.0,0.00014533,2]
[419690083,1775291444200,-150.0,0.0001456,2]
[419690084,1775291444209,-150.0,0.00014667,2]
[419690085,1775291444219,-150.0,0.00014667,2]
[419690086,1775291444230,-508.71327296,0.00014678,2]
[419690087,1775291444240,-7427.50608623,0.000147,2]
[419690088,1775291444252,-500.0,0.00014705,2]
[419690089,1775291444262,-150.0,0.0001472,2]
[419690090,1775291444272,-150.0,0.000148,2]
[419690091,1775291444281,-150.0,0.0001488,2]
[419690092,1775291444291,-508.71327296,0.00014922,2]
[419690093,1775291444300,-150.0,0.00014933,2]
[419690094,1775291444310,-150.0,0.00014933,2]
[419690095,1775291444323,-150.0,0.00014933,2]
[419690096,1775291444334,-150.0,0.00014933,2]
[419690097,1775291444345,-150.0,0.00014933,2]
[419690098,1775291444355,-150.0,0.00014933,2]
[419690099,1775291444364,-150.0,0.00014933,2]
[419690100,1775291444375,-187.78006525,0.00014949,2]
[419690101,1775291444386,-7225.60086345,0.00014967,2]
[419690102,1775291444396,-1500.0,0.00014996,2]
[419690103,1775291444405,-160.0,0.00015,2]
[419690104,1775291444415,-150.0,0.0001504,2]
[419690105,1775291444425,-150.0,0.00015067,2]
[419690106,1775291444434,-1848.8,0.00015068,2]
[419690107,1775291444444,-267.31,0.00015068,2]
[419690108,1775291444453,-150.0,0.00015075,2]
[419690109,1775291444463,-463.728,0.00015077,2]
[419690110,1775291444472,-8440.4,0.00015077,2]
[419690111,1775291444481,-1381.0,0.00015111,2]
[419690112,1775291444490,-1381.0,0.00015117,2]
[419690113,1775291444501,-1381.0,0.00015121,2]
[419690114,1775291444511,-508.71327296,0.00015167,2]
[419690115,1775291444520,-494.89,0.000152,2]
[419690116,1775291444530,-150.0,0.000152,2]
[419690117,1775291444539,-150.0,0.000152,2]
[419690118,1775291444548,-150.0,0.000152,2]
[419690119,1775291444558,-150.0,0.000152,2]
[419690120,1775291444568,-4409.0,0.00015208,5]
[419690121,1775291444578,-1381.0,0.00015253,2]
[419690122,1775291444587,-2000.0,0.00015286,2]
[419690123,1775291444596,-2700.0,0.000153,5]
[419690124,1775291444606,-7427.50608623,0.000153,2]
[419690125,1775291444615,-150.0,0.00015333,2]
[419690126,1775291444625,-157.3,0.00015346,2]
[419690127,1775291444635,-1381.0,0.00015348,2]
[419690128,1775291444643,-150.0,0.0001536,2]
[419690129,1775291444653,-4100.0,0.000154,5]
[419690130,1775291444662,-1381.0,0.00015411,2]
[419690131,1775291444671,-7225.60086345,0.00015433,2]
[419690132,1775291444681,-150.0,0.00015467,2]
[419690133,1775291444690,-150.0,0.00015467,2]
[419690134,1775291444700,-150.0,0.00015467,2]
[419690135,1775291444710,-150.0,0.00015467,2]
[419690136,1775291444719,-150.0,0.00015467,2]
[419690137,1775291444728,-150.0,0.00015467,2]
[419690138,1775291444738,-150.0,0.00015467,2]
[419690139,1775291444748,-1381.0,0.0001547,2]
[419690140,1775291444757,-194.72792766,0.00015497,2]
[419690141,1775291444767,-5500.0,0.000155,5]
[419690142,1775291444777,-4000.0,0.00015507,2]
[419690143,1775291444789,-150.0,0.0001552,2]
[419690144,1775291444801,-350.0,0.00015543,2]
[419690145,1775291444810,-168.0,0.00015564,2]
[419690146,1775291444819,-350.0,0.0001557,2]
[419690147,1775291444828,-517.0,0.00015588,4]
[419690148,1775291444838,-150.0,0.000156,2]
[419690149,1775291444847,-6900.0,0.000156,5]
[419690150,1775291445191,-4437.0,0.00015604,2]
[419690151,1775291445202,-168.0,0.00015621,2]
[419690152,1775291445213,-1381.0,0.00015621,2]
[419690153,1775291445224,-3407.75,0.00015627,2]
[419690154,1775291445234,-1381.0,0.00015645,2]
[419690155,1775291445245,-700.0,0.00015648,2]
[419690156,1775291445255,-350.0,0.00015669,2]
[419690157,1775291445266,-150.0,0.0001568,2]
[419690158,1775291445276,-350.0,0.00015682,2]
[419690159,1775291445286,-1300.0,0.000157,5]
[419690160,1775291445295,-1600.0,0.00015704,2]
[419690161,1775291445304,-350.0,0.00015718,2]
[419690162,1775291445313,-150.0,0.00015733,2]
[419690163,1775291445322,-150.0,0.00015733,2]
[419690164,1775291445331,-1848.8,0.00015753,2]
[419690165,1775291445341,-7991.34011643,0.00015757,2]
[419690166,1775291445351,-520.97455427,0.00015757,2]
[419690167,1775291445360,-4578.0,0.00015779,5]
[419690168,1775291445369,-483.76,0.00015779,2]
[419690169,1775291445379,-483.76,0.00015779,2]
[419690170,1775291445388,-483.76,0.00015779,2]
[419690171,1775291445397,-483.76,0.00015779,2]
[419690172,1775291445406,-483.74,0.00015779,2]
[419690173,1775291445415,-7991.34011638,0.00015786,2]
[419690174,1775291445424,-1300.0,0.000158,5]
[419690175,1775291445433,-7991.34011638,0.00015814,2]
[419690176,1775291445443,-520.97455427,0.00015829,2]
[419690177,1775291445452,-150.0,0.0001584,2]
[419690178,1775291445461,-2000.0,0.0001584,2]
[419690179,1775291445471,-2000.0,0.0001584,2]
[419690180,1775291445480,-2000.0,0.0001584,2]
[419690181,1775291445489,-7991.34011638,0.00015843,2]
[419690182,1775291445499,-217.21806696,0.00015847,2]
[419690183,1775291445508,-2808.4502313,0.00015857,2]
[419690184,1775291445518,-727332.5348034,0.00015857,2]
[419690185,1775291445527,-5252.6653863,0.00015857,2]
[419690186,1775291445536,-64062.205797,0.00015857,2]
[419690187,1775291445545,-129186.7084249,0.00015857,2]
[419690188,1775291445555,-150.0,0.00015867,2]
[419690189,1775291445565,-200.0,0.00015871,2]
[419690190,1775291445574,-7991.34011638,0.00015871,2]
[419690191,1775291445584,-200.0,0.00015872,2]
[419690192,1775291445594,-500.0,0.00015873,2]
[419690193,1775291445603,-500.0,0.00015873,2]
[419690194,1775291445613,-501.31463682,0.00015873,2]
[419690195,1775291445622,-500.0,0.00015873,2]
[419690196,1775291445631,-500.0,0.00015873,2]
[419690197,1775291445640,-178.83121777,0.00015873,2]
[419690198,1775291445650,-501.09720442,0.00015873,2]
[419690199,1775291445659,-500.0,0.00015873,2]
[419690200,1775291445668,-500.0,0.0001589,2]
[419690201,1775291445677,-500.0,0.0001589,2]
[419690202,1775291445686,-2000.0,0.0001589,2]
[419690203,1775291445695,-4000.0,0.00015895,2]
[419690204,1775291445705,-10000.0,0.000159,2]
[419690205,1775291445714,-1300.0,0.000159,5]
[419690206,1775291445724,-7427.50608623,0.000159,2]
[419690207,1775291445733,-7225.60086345,0.000159,2]
[419690208,1775291445743,-151.12106257,0.000159,2]
[419690209,1775291445752,-5667.46241087,0.000159,2]
[419690210,1775291445761,-7991.34011638,0.000159,2]
[419690211,1775291445770,-387.54543301,0.000159,2]
[419690212,1775291445780,-163.10994461,0.000159,2]
[419690213,1775291445789,-520.97455427,0.000159,2]
[419690214,1775291445799,-1933.51006069,0.000159,2]
[419690215,1775291445808,-500.0,0.00015973,2]
[419690216,1775291445817,-500.0,0.00015973,2]
[419690217,1775291445827,-418.82438739,0.00015973,2]
[419690218,1775291445836,-500.0,0.00015973,2]
[419690219,1775291445845,-500.0,0.00015973,2]
[419690220,1775291445854,-500.0,0.00015973,2]
[419690221,1775291445863,-500.0,0.00015973,2]
[419690222,1775291445872,-501.7767113,0.00015973,2]
[419690223,1775291445881,-500.0,0.00015973,2]
[419690224,1775291445890,-501.18780645,0.00015973,2]
[419690225,1775291445900,-500.96208165,0.00015973,2]
[419690226,1775291445910,-500.0,0.00015973,2]
[419690227,1775291445919,-527.55865505,0.00015973,2]
[419690228,1775291445928,-500.0,0.00015973,2]
[419690229,1775291445937,-326.71912317,0.00015973,2]
[419690230,1775291445946,-248.0,0.00015978,2]
[419690231,1775291445956,-171.49599902,0.00015979,2]
[419690232,1775291445965,-222.05346325,0.00015984,2]
[419690233,1775291445974,-203.59844522,0.00015984,2]
[419690234,1775291445983,-217.21806696,0.0001599,2]
[419690235,1775291445992,-4437.0,0.0001599,2]
[419690236,1775291446001,-151.0,0.00015997,2]
[419690237,1775291446011,-151.0,0.00015997,2]
[419690238,1775291446020,-666.0,0.00015999,2]
[419690239,1775291446030,-670.84839751,0.00015999,2]
[419690240,1775291446039,-666.0,0.00015999,2]
[419690241,1775291446049,-666.0,0.00015999,2]
[419690242,1775291446059,-155.553,0.00015999,2]
[419690243,1775291446068,-500.0,0.00015999,2]
[419690244,1775291446077,-500.0,0.00015999,2]
[419690245,1775291446086,-500.0,0.00015999,2]
[419690246,1775291446095,-500.0,0.00015999,2]
[419690248,1775291446104,-500.0,0.00015999,2]
[419690249,1775291446113,-500.0,0.00015999,2]
[419690250,1775291446122,-500.0,0.00015999,2]
[419690251,1775291446131,-500.0,0.00015999,2]
[419690252,1775291446140,-500.0,0.00015999,2]
[419690253,1775291446149,-500.0,0.00015999,2]
[419690254,1775291446158,-500.0,0.00015999,2]
[419690255,1775291446167,-500.0,0.00015999,2]
[419690256,1775291446176,-500.0,0.00015999,2]
[419690257,1775291446185,-500.0,0.00015999,2]
[419690258,1775291446194,-500.0,0.00015999,2]
[419690259,1775291446203,-500.0,0.00015999,2]
[419690260,1775291446211,-500.0,0.00015999,2]
[419690261,1775291446221,-500.0,0.00015999,2]
[419690262,1775291446230,-500.0,0.00015999,2]
[419690263,1775291446239,-500.0,0.00015999,2]
[419690264,1775291446248,-500.0,0.00015999,2]
[419690265,1775291446258,-500.0,0.00015999,2]
[419690266,1775291446267,-500.0,0.00015999,2]
[419690267,1775291446276,-500.0,0.00015999,2]
[419690268,1775291446286,-500.0,0.00015999,2]
[419690269,1775291446295,-500.0,0.00015999,2]
[419690270,1775291446304,-500.0,0.00015999,2]
[419690271,1775291446312,-500.0,0.00015999,2]
[419690272,1775291446321,-500.0,0.00015999,2]
[419690273,1775291446331,-500.0,0.00015999,2]
[419690274,1775291446339,-500.0,0.00015999,2]
[419690275,1775291446348,-156.6731617,0.00016,2]
[419690276,1775291446357,-153.32332907,0.00016,2]
[419690277,1775291446366,-152.61128617,0.00016,2]
[419690278,1775291446375,-152.90460209,0.00016,2]
[419690279,1775291446384,-256.52934676,0.00016,2]
[419690280,1775291446394,-154.4422212,0.00016,2]
[419690281,1775291446403,-151.90220774,0.00016,2]
[419690282,1775291446413,-207.04675365,0.00016,2]
[419690283,1775291446422,-287.70807985,0.00016,2]
[419690284,1775291446431,-153.45263565,0.00016,2]
[419690285,1775291446441,-5304083.79522384,0.00016,2]
[419690290,1775291447441,-1000.0,0.00014093,2]
[419690291,1775291447452,-1000.0,0.00014093,2]
[419690292,1775291447461,-1000.0,0.00014093,2]
[419690293,1775291447470,-939.183122,0.000145,2]
[419690294,1775291447554,-3302.55053612,0.000145,2]
[419690295,1775291447566,-850.29565621,0.000145,2]
[419690296,1775291447913,-1.96566913,0.000145,2]
[419690297,1775291449110,-13496.85903634,0.000145,2]
[419690298,1775291449121,-508.71327296,0.00015411,2]
[419690299,1775291449130,-508.71327296,0.00015656,2]
[419690300,1775291449140,-12570.14493643,0.00016,2]
[419690301,1775291449151,-46263.8428294,0.00016,2]
[419690302,1775291739050,-150.0,0.000116,2]
[419690303,1775291739076,-923.66404536,0.000116,2]
[419690304,1775291962930,163.14,9.669e-05,2]
[419690308,1775292561262,849.73,5.744e-05,2]
[419690309,1775292561544,849.73,6.046e-05,2]
[419690310,1775292561641,849.73,6.349e-05,2]
[419690311,1775292561836,849.73,6.651e-05,2]
[419690312,1775292562027,849.73,6.953e-05,2]
[419690313,1775292562212,849.73,7.256e-05,2]
[419690314,1775292562398,849.73,7.558e-05,2]
[419690315,1775292562591,849.73,7.86e-05,2]
[419690316,1775292562783,849.73,8.163e-05,2]
[419690317,1775292562967,849.73,8.465e-05,2]
[419690318,1775292563292,849.73,8.767e-05,2]
[419690319,1775292563510,489.83,9.07e-05,2]
[419690320,1775292563538,359.9,9.07e-05,2]
[419690321,1775292563728,849.73,9.372e-05,2]
[419690322,1775292563909,849.73,9.674e-05,2]
[419690325,1775292631970,-849.73,9.977e-05,2]
[419690326,1775292631981,-849.73,0.00010279,2]
[419690327,1775292631991,-305.13913914,0.00010581,2]
[419690328,1775292632003,-544.59086086,0.00010581,2]
[419690329,1775292632013,-849.73,0.00010884,2]
[419690330,1775292632023,-849.73,0.00011186,2]
[419690331,1775292632033,-849.73,0.00011488,2]
[419690332,1775292632043,-1200.0,0.000115,2]
[419690333,1775292632053,-3083.043,0.00011501,2]
[419690334,1775292632063,-600.0,0.00011513,2]
[419690335,1775292632074,-250.0,0.00011525,2]
[419690336,1775292632084,-300.0,0.0001154,2]
[419690337,1775292632095,-600.0,0.00011541,2]
[419690338,1775292632106,-600.0,0.00011541,2]
[419690339,1775292632117,-600.0,0.00011541,2]
[419690340,1775292632128,-250.0,0.00011554,2]
[419690341,1775292632138,-5544.22861621,0.00011593,2]
[419690342,1775292637493,-2500.0,0.00011501,2]
[419690343,1775292637503,-33.22415667,0.00011593,2]
[419690344,1775292637512,-5373.52963737,0.00011601,2]
[419690345,1775292637600,-993.34152341,0.00011601,2]
[419690346,1775292637612,-645.72091249,0.00011601,2]
[419690347,1775292637623,-539.93551002,0.00011601,2]
[419690348,1775292637708,-825.26934686,0.00011601,2]